bitfinex-derivatives/quotes_ETHF0:USTF0_20250712
["timestamp","ask_amount","ask_price","bid_price","bid_amount"]
[1752349965981,4.21927417,2941.4,2941.3,3.25613]
[1752349966180,3.53956417,2941.4,2941.3,3.25613]
[1752349969385,3.53956417,2941.4,2941.3,6.46393]
[1752349971587,4.21927417,2941.4,2941.3,6.46393]
[1752349973182,3.53956417,2941.4,2941.3,6.46393]
[1752349975090,4.21927417,2941.4,2941.3,6.46393]
[1752349975991,3.53956417,2941.4,2941.3,6.46393]
[1752349976890,3.53956417,2941.4,2941.3,3.25613]
[1752349977194,3.53956417,2941.4,2941.3,6.46393]
[1752349978892,3.26771565,2941.4,2941.3,6.46393]
[1752349979493,3.94742565,2941.4,2941.3,6.46393]
[1752349979789,3.26771565,2941.4,2941.3,6.46393]
[1752349980091,3.94742565,2941.4,2941.3,6.46393]
[1752349980390,4.91924353,2941.4,2941.3,3.25613]
[1752349981183,4.23953353,2941.4,2941.3,3.25613]
[1752349981388,4.91924353,2941.4,2941.3,3.25613]
[1752349981686,4.23953353,2941.4,2941.3,2.25803]
[1752349982692,4.23953353,2941.4,2941.3,3.25513]
[1752349983192,4.91924353,2941.4,2941.3,2.25803]
[1752349983392,3.94742565,2941.4,2941.3,2.25803]
[1752349983690,4.9191966,2941.4,2941.3,2.25803]
[1752349984392,3.94742565,2941.4,2941.3,2.25803]
[1752349985090,3.94742565,2941.4,2941.1,1.69945]
[1752349985091,0.67975,2941.3,2941.1,0.9971]
[1752349985290,4.0703313,2941.2,2941.1,2.28338]
[1752349985591,4.7500913,2941.2,2941.1,0.659]
[1752349985797,1.29595,2940.9,2940.8,1.33884]
[1752349985987,3.93446565,2940.9,2940.8,1.33884]
[1752349986188,3.93446565,2940.9,2940.8,0.659]
[1752349986690,1.31225,2940.8,2940.7,0.6163]
[1752349986991,1.31225,2940.8,2940.6,1.62448]
[1752349986992,0.67987,2940.7,2940.6,0.9446]
[1752349987293,3.25763,2940.5,2940.4,2.21872]
[1752349987494,4.34598789,2940.5,2940.4,2.21872]
[1752349987995,3.66605789,2940.5,2940.4,2.21872]
[1752349988194,3.66605789,2940.5,2940.4,3.19482]
[1752349990696,4.34597789,2940.5,2940.4,3.19482]
[1752349991194,4.34597789,2940.5,2940.4,2.21872]
[1752349993897,4.34597789,2940.5,2940.4,1.5388]
[1752349994497,3.66605789,2940.5,2940.4,2.21874]
[1752349995200,4.34597789,2940.5,2940.4,2.21874]
[1752349996999,3.66605789,2940.5,2940.4,3.19484]
[1752349997188,2.5777,2940.5,2940.4,3.19484]
[1752349998094,2.5777,2940.5,2940.4,6.40264]
[1752349999699,3.25762,2940.5,2940.4,6.40264]
[1752349999904,4.34597789,2940.5,2940.4,6.40264]
[1752350000305,4.34597789,2940.5,2940.4,5.42654]
[1752350001598,3.66605789,2940.5,2940.4,5.42654]
[1752350001803,3.66605789,2940.5,2940.4,6.40264]
[1752350002405,2.5777,2940.5,2940.4,6.40264]
[1752350003506,2.5777,2940.7,2940.6,3.1948]
[1752350004202,3.25757,2940.7,2940.6,3.1948]
[1752350005804,4.34592789,2940.7,2940.6,3.1948]
[1752350006302,3.66605789,2940.7,2940.6,3.1948]
[1752350007905,4.34592789,2940.7,2940.6,3.1948]
[1752350009909,4.34592789,2940.7,2940.6,2.5149]
[1752350010110,4.34592789,2940.7,2940.6,3.1948]
[1752350013810,4.34592789,2940.7,2940.6,2.2187]
[1752350015705,4.34592789,2940.7,2940.6,3.1948]
[1752350018308,3.19404,2940.9,2940.8,0.67985]
[1752350018613,4.57392221,2940.9,2940.8,3.30035]
[1752350019914,5.25375221,2940.9,2940.8,3.30035]
[1752350020210,5.25375221,2940.9,2940.8,1.6237]
[1752350021213,5.25375221,2940.9,2940.8,2.30355]
[1752350024915,5.25375221,2940.9,2940.8,1.6237]
[1752350025610,5.25375221,2940.9,2940.8,2.30355]
[1752350026416,5.25375221,2940.9,2940.8,1.6237]
[1752350026812,5.25375221,2940.9,2940.8,2.6205]
[1752350029018,5.25375221,2940.9,2940.8,3.30035]
[1752350030320,4.57392221,2940.9,2940.8,3.30035]
[1752350031918,5.25375221,2940.9,2940.8,3.30035]
[1752350033323,4.57392221,2940.9,2940.8,3.30035]
[1752350034618,5.25375221,2940.9,2940.8,3.30035]
[1752350034818,4.98138094,2940.9,2940.8,3.30035]
[1752350036725,4.98138094,2940.9,2940.8,1.6237]
[1752350037122,4.98138094,2940.9,2940.8,2.30355]
[1752350040923,4.98138094,2940.9,2940.8,1.6237]
[1752350041328,4.98138094,2940.9,2940.8,2.30355]
[1752350043428,4.30155094,2940.9,2940.8,2.30355]
[1752350043727,4.30155094,2940.9,2940.8,3.30035]
[1752350046622,4.98138094,2940.9,2940.8,3.30035]
[1752350048028,4.30155094,2940.9,2940.8,3.30035]
[1752350050027,3.17087,2940.8,2940.7,2.28705]
[1752350050227,3.46236432,2940.8,2940.7,3.18955]
[1752350053830,4.14221432,2940.8,2940.7,3.18955]
[1752350054230,3.46236432,2940.8,2940.7,3.18955]
[1752350055127,4.14221432,2940.8,2940.7,3.18955]
[1752350056232,4.14221432,2940.8,2940.7,2.28705]
[1752350057033,4.14221432,2940.8,2940.7,3.18955]
[1752350058333,3.46236432,2940.8,2940.7,3.18955]
[1752350059833,4.14221432,2940.8,2940.7,3.18955]
[1752350060030,3.46236432,2940.8,2940.7,3.18955]
[1752350061334,4.14221432,2940.8,2940.7,3.18955]
[1752350061636,3.46236432,2940.8,2940.7,3.18955]
[1752350063032,0.97136432,2940.8,2940.7,3.18955]
[1752350063236,3.30698662,2940.9,2940.8,3.18955]
[1752350063933,3.98681662,2940.9,2940.8,3.18955]
[1752350075547,3.98681662,2940.9,2940.8,2.28705]
[1752350076249,3.30698662,2940.9,2940.8,2.28705]
[1752350076451,3.98681662,2940.9,2940.8,2.28705]
[1752350077847,2.4647,2940.6,2940.5,4.51472]
[1752350078052,3.28068662,2940.6,2940.5,5.44172]
[1752350078554,3.28068662,2940.6,2940.5,6.34702]
[1752350079451,3.96058662,2940.6,2940.5,5.42002]
[1752350081853,3.96058662,2940.6,2940.5,2.21222]
[1752350085562,3.96058662,2940.6,2940.5,3.13922]
[1752350087260,3.28068662,2940.6,2940.5,3.13922]
[1752350088357,3.96058662,2940.6,2940.5,3.13922]
[1752350099267,3.28068662,2940.6,2940.5,3.13922]
[1752350099566,0.9465,2940.6,2940.5,3.95520662]
[1752350099767,0.9465,2940.6,2940.5,3.13922]
[1752350100267,1.6264,2940.6,2940.5,3.13922]
[1752350100569,2.536,2940.6,2940.5,3.13922]
[1752350100766,1.8561,2940.6,2940.5,3.13922]
[1752350101366,2.536,2940.6,2940.5,3.13922]
[1752350102268,3.96058662,2940.6,2940.5,3.13922]
[1752350102669,3.96058662,2940.6,2940.5,2.21222]
[1752350103264,3.96058662,2940.6,2940.2,0.9053]
[1752350103265,2.4647,2940.5,2940.2,0.9053]
[1752350103464,3.96065662,2940.3,2940.2,0.9053]
[1752350103665,3.96065662,2940.3,2940.2,1.58529]
[1752350103866,3.96065662,2940.3,2940.2,4.79309]
[1752350104076,3.96065662,2940.3,2940.2,5.42009]
[1752350104771,3.96065662,2940.3,2940.2,6.34709]
[1752350105471,3.96065662,2940.3,2940.2,5.42009]
[1752350106172,3.96065662,2940.3,2940.2,6.32239]
[1752350106470,3.96065662,2940.3,2940.2,5.42009]
[1752350108470,3.14467,2940.3,2940.2,5.42009]
[1752350108774,3.14467,2940.3,2940.2,6.32239]
[1752350110576,3.14467,2940.3,2940.2,5.42009]
[1752350112574,3.14467,2940.3,2940.2,2.21229]
[1752350112775,3.14467,2940.3,2940.2,5.42009]
[1752350112975,3.96065662,2940.3,2940.2,6.32239]
[1752350113575,3.96065662,2940.3,2940.2,5.42009]
[1752350114379,3.96065662,2940.3,2940.2,6.32239]
[1752350116178,3.96065662,2940.3,2940.2,3.11459]
[1752350116377,3.96065662,2940.3,2940.2,6.32239]
[1752350120477,3.96065662,2940.3,2940.2,2.21229]
[1752350121181,3.96065662,2940.3,2940.2,5.42009]
[1752350121484,3.96065662,2940.3,2940.2,2.21229]
[1752350122283,3.96065662,2940.3,2940.2,1.30699]
[1752350122583,3.96065662,2940.3,2939.7,1.70026]
[1752350122584,2.26873,2939.6,2939.5,1.5759]
[1752350122785,4.04891662,2939.6,2939.5,1.5759]
[1752350123082,4.04891662,2939.6,2939.5,2.4782]
[1752350123785,4.04891662,2939.6,2939.5,3.15835]
[1752350124787,4.32187924,2939.6,2939.5,3.15835]
[1752350125080,2.62087,2939.5,2939.4,1.5759]
[1752350125286,3.64174924,2939.5,2939.4,2.25607]
[1752350125482,3.64174924,2939.5,2939.4,3.15837]
[1752350125787,4.32189924,2939.5,2939.4,2.4782]
[1752350125987,4.32189924,2939.5,2939.4,1.5759]
[1752350126191,4.32189924,2939.5,2939.3,3.2078]
[1752350126192,3.23297,2939.4,2939.3,3.2078]
[1752350126681,1.2923,2939.3,2939.2,1.5759]
[1752350126882,3.233,2939.3,2939.2,1.5759]
[1752350127082,4.32194924,2939.3,2939.2,1.5759]
[1752350128289,4.32194924,2939.3,2939.2,2.25612]
[1752350128587,4.32194924,2939.3,2939.2,1.5759]
[1752350128785,3.64174924,2939.3,2939.2,2.25612]
[1752350129179,4.32194924,2939.3,2939.2,1.5759]
[1752350129786,4.32194924,2939.3,2939.2,2.25612]
[1752350129989,2.26884,2939.1,2939.0,4.7837]
[1752350130189,4.32198924,2939.1,2939.0,1.5759]
[1752350130988,4.32198924,2939.1,2939.0,0.6088]
[1752350131886,4.32198924,2939.1,2939.0,1.5759]
[1752350132492,4.32198924,2939.1,2939.0,2.25617]
[1752350135791,3.64174924,2939.1,2939.0,3.15847]
[1752350136989,4.32198924,2939.1,2939.0,3.15847]
[1752350138296,3.64174924,2939.1,2939.0,3.15847]
[1752350139296,4.32198924,2939.1,2939.0,3.15847]
[1752350139490,3.64174924,2939.1,2939.0,3.15847]
[1752350142395,4.32198924,2939.1,2939.0,3.15847]
[1752350143799,3.23304,2939.1,2939.0,3.15847]
[1752350144000,4.32198924,2939.1,2939.0,3.15847]
[1752350144394,3.64174924,2939.1,2939.0,3.15847]
[1752350144595,4.32198924,2939.1,2939.0,3.15847]
[1752350145494,3.64174924,2939.1,2939.0,3.15847]
[1752350149002,4.32198924,2939.1,2939.0,1.34627]
[1752350149301,3.64174924,2939.1,2939.0,2.28597]
[1752350150205,4.32198924,2939.1,2939.0,2.28597]
[1752350150599,3.64174924,2939.1,2939.0,2.28597]
[1752350153904,3.64174924,2939.1,2939.0,3.26547]
[1752350154606,4.64660952,2939.1,2939.0,3.26547]
[1752350154900,5.32684952,2939.1,2939.0,3.26547]
[1752350155602,5.32684952,2939.1,2939.0,2.28597]
[1752350157006,4.64660952,2939.1,2939.0,2.28597]
[1752350157210,4.64660952,2939.1,2939.0,3.26547]
[1752350160704,1.21586371,2939.5,2939.4,0.68017]
[1752350160902,3.10896371,2939.6,2939.5,3.24965]
[1752350161098,1.8931,2939.6,2939.5,3.24965]
[1752350161396,1.21586371,2939.7,2939.6,1.34613]
[1752350161602,3.74156371,2939.7,2939.6,3.24963]
[1752350163110,2.5257,2939.7,2939.6,3.24963]
[1752350166515,2.5257,2939.7,2939.6,6.45743]
[1752350167715,2.4746,2939.9,2939.8,3.14908]
[1752350168111,4.24351924,2940.4,2940.3,1.30784]
[1752350170018,4.24351924,2940.4,2940.3,0.67994]
[1752350171117,2.2538,2940.3,2940.2,0.67998]
[1752350171417,3.1546,2940.3,2940.2,0.67998]
[1752350172118,3.1546,2940.3,2939.6,3.2078]
[1752350172119,0.6547,2939.8,2939.7,1.5466]
[1752350172317,3.56354924,2939.8,2939.7,2.2267]
[1752350172817,3.56354924,2939.8,2939.7,3.1491]
[1752350173619,2.4746,2939.8,2939.7,3.1491]
[1752350177119,2.4746,2939.8,2939.7,6.3569]
[1752350182729,0.68013,2939.7,2939.3,4.1302]
[1752350183025,2.4746,2939.1,2939.0,4.51597]
[1752350183227,3.56354924,2939.1,2939.0,4.51597]
[1752350183423,4.24378924,2939.1,2939.0,4.51597]
[1752350183821,3.56354924,2939.1,2939.0,4.51597]
[1752350184426,3.56354924,2939.1,2939.0,5.43467]
[1752350185029,2.4746,2939.1,2939.0,6.35707]
[1752350187132,2.4746,2939.3,2939.2,3.14922]
[1752350196939,2.4746,2939.3,2939.2,6.35702]
[1752350200645,2.4746,2939.3,2939.2,5.43462]
[1752350201040,3.56354924,2939.3,2939.2,4.51592]
[1752350202945,4.24374924,2939.3,2939.2,4.51592]
[1752350203140,4.24374924,2939.3,2939.2,3.88802]
[1752350203342,3.22347,2939.1,2939.0,0.68024]
[1752350203543,4.31241924,2939.1,2939.0,0.68024]
[1752350205548,4.31241924,2939.1,2938.9,3.2078]
[1752350205549,3.22347,2939.0,2938.9,4.49467]
[1752350205739,3.22347,2939.0,2938.9,3.88807]
[1752350206148,3.22347,2939.0,2938.9,0.68027]
[1752350211158,2.5432,2939.0,2938.9,0.68027]
[1752350214954,3.22347,2939.0,2938.9,0.68027]
[1752350216662,2.5432,2939.0,2938.9,1.28687]
[1752350217055,2.5432,2939.0,2938.9,2.27957]
[1752350217760,2.5432,2939.0,2938.9,3.20167]
[1752350221853,2.5432,2939.4,2939.3,3.2016]
[1752350225968,2.5432,2939.4,2939.3,2.2795]
[1752350227574,2.5432,2939.4,2939.3,3.1982]
[1752350228766,2.5432,2939.4,2939.3,2.2795]
[1752350229270,3.63214924,2939.4,2939.3,2.2795]
[1752350231178,2.5432,2939.4,2939.3,3.1982]
[1752350233269,2.5432,2939.4,2939.3,2.2795]
[1752350233478,2.5432,2939.4,2939.3,3.1982]
[1752350233871,2.5432,2939.4,2939.3,2.2795]
[1752350237280,2.5432,2939.4,2939.3,3.1982]
[1752350238687,1.868,2939.6,2939.5,2.25985]
[1752350238978,1.6082,2939.8,2939.7,3.1785]
[1752350239175,1.6082,2939.8,2939.7,4.26744924]
[1752350239381,2.5314,2939.8,2939.7,4.26744924]
[1752350239585,2.5314,2939.8,2939.7,3.1785]
[1752350242786,1.868,2939.8,2939.7,3.1785]
[1752350242985,0.9448,2939.8,2939.7,3.1785]
[1752350243887,1.868,2939.8,2939.7,3.1785]
[1752350244587,2.5314,2939.8,2939.7,3.1785]
[1752350249192,1.868,2939.8,2939.7,3.1785]
[1752350249396,0.9448,2939.8,2939.7,3.1785]
[1752350249991,1.868,2939.8,2939.7,3.1785]
[1752350250195,1.6082,2940.2,2940.1,1.60881]
[1752350250395,1.6082,2940.2,2940.1,3.17841]
[1752350250793,2.5314,2940.2,2940.1,3.17841]
[1752350254402,0.9448,2940.2,2940.1,4.26735924]
[1752350254593,0.9232,2940.5,2940.4,0.67994]
[1752350254797,2.5314,2940.5,2940.4,3.17834]
[1752350259403,0.67981,2941.0,2940.9,0.67981]
[1752350259704,0.6222,2941.0,2940.9,0.67981]
[1752350259900,2.5582,2941.0,2940.9,0.67981]
[1752350260207,3.23801,2941.0,2940.9,0.67981]
[1752350260610,0.6222,2940.9,2940.5,3.60667]
[1752350260807,1.936,2940.7,2940.6,1.6768]
[1752350261006,2.5582,2940.7,2940.6,2.3075]
[1752350263806,2.5582,2940.7,2940.6,3.2175]
[1752350267011,1.936,2940.7,2940.6,3.2175]
[1752350267316,2.5582,2940.9,2940.8,3.21745]
[1752350267511,2.5582,2940.9,2940.8,6.42525]
[1752350270117,2.5582,2940.9,2940.8,5.51525]
[1752350270514,3.64714924,2940.9,2940.8,5.51525]
[1752350277324,3.64714924,2940.9,2940.8,3.88765]
[1752350277819,3.64714924,2940.9,2940.8,0.67985]
[1752350282829,4.32697924,2940.9,2940.8,0.67985]
[1752350284823,5.32230489,2940.9,2940.8,0.67985]
[1752350285013,4.32697924,2940.9,2940.8,0.67985]
[1752350285324,5.32250604,2940.9,2940.8,0.67985]
[1752350286324,2.08447604,2940.9,2940.4,1.69982]
[1752350286524,2.4919,2940.4,2940.3,3.88777]
[1752350286725,2.4919,2940.4,2940.3,4.49537]
[1752350287821,2.4919,2940.4,2940.3,5.42107]
[1752350288326,2.4919,2940.4,2940.3,6.33917]
[1752350305041,0.9001,2940.4,2940.3,6.33917]
[1752350305638,1.852,2940.4,2940.3,6.33917]
[1752350306537,1.08894924,2940.9,2940.8,0.67985]
[1752350306538,1.72884924,2940.9,2940.8,0.67985]
[1752350306739,3.6259297,2940.9,2940.8,0.67985]
[1752350307438,4.5778297,2940.9,2940.8,0.67985]
[1752350308444,3.48888046,2940.9,2940.8,0.67985]
[1752350311647,3.48888046,2940.9,2940.8,1.28745]
[1752350313048,3.48888046,2940.9,2940.8,2.21315]
[1752350313247,3.48888046,2940.9,2940.8,3.13125]
[1752350313448,2.4919,2940.9,2940.8,3.13125]
[1752350314947,2.4919,2940.9,2940.8,6.33905]
[1752350320751,2.4919,2940.9,2940.8,3.13125]
[1752350321256,2.4919,2940.9,2940.8,6.33905]
[1752350334064,1.08894924,2941.2,2941.1,1.28049]
[1752350334065,0.6482,2941.2,2941.1,1.28049]
[1752350334252,0.6482,2941.2,2941.1,4.48829]
[1752350334456,1.6450697,2941.2,2941.1,4.48829]
[1752350334653,3.5709697,2941.2,2941.1,4.48829]
[1752350336262,2.5741,2941.2,2941.1,4.48829]
[1752350339868,3.66304924,2941.2,2941.1,4.48829]
[1752350340167,3.66304924,2941.2,2941.1,3.88759]
[1752350340669,2.5741,2941.2,2941.1,6.35029]
[1752350341069,2.5741,2941.2,2941.1,5.42889]
[1752350341464,2.5741,2941.2,2941.1,3.88759]
[1752350342565,3.25386,2941.2,2941.1,3.88759]
[1752350342968,2.5741,2941.2,2941.1,3.88759]
[1752350345368,2.5741,2941.2,2941.1,4.48829]
[1752350345571,2.5741,2941.2,2941.1,6.35029]
[1752350347172,1.889,2941.2,2941.1,6.35029]
[1752350347473,2.5352,2941.2,2941.1,6.35029]
[1752350347672,1.889,2941.2,2941.1,6.35029]
[1752350347862,0.9871,2941.2,2941.1,6.35029]
[1752350348472,1.889,2941.2,2941.1,6.35029]
[1752350352776,2.5352,2941.2,2941.1,6.35029]
[1752350359181,2.5352,2941.2,2941.1,3.14249]
[1752350359483,2.5352,2941.2,2941.1,6.35029]
[1752350364284,2.5352,2941.2,2941.1,5.42889]
[1752350367184,2.5352,2941.2,2941.1,6.35019]
[1752350369686,2.5352,2941.2,2941.1,5.42889]
[1752350371081,2.5352,2941.2,2941.1,6.2445415]
[1752350371486,2.5352,2941.2,2941.1,7.1658415]
[1752350373592,1.32581,2941.9,2941.8,0.67961]
[1752350373792,4.94238702,2941.9,2941.8,0.67961]
[1752350373995,9.94238702,2941.9,2941.8,0.67961]
[1752350376101,3.44712552,2941.9,2941.8,1.4952615]
[1752350376299,2.4499,2941.9,2941.8,3.88741]
[1752350376798,3.5370875,2941.9,2941.8,3.88741]
[1752350380393,3.5370875,2941.9,2941.8,4.51001]
[1752350380596,2.4499,2941.9,2941.8,4.51001]
[1752350381301,3.5370875,2941.9,2941.8,4.51001]
[1752350395009,2.4499,2941.9,2941.8,6.35961]
[1752350401415,0.9018,2941.9,2941.8,6.35961]
[1752350402623,2.5689,2942.1,2942.0,2.23468]
[1752350402827,2.5689,2942.1,2942.0,3.15178]
[1752350403015,3.3842086,2942.1,2942.0,2.23468]
[1752350403421,3.3842086,2942.1,2942.0,3.15178]
[1752350404924,2.5689,2942.1,2942.0,3.15178]
[1752350406518,1.9238,2942.1,2942.0,3.15178]
[1752350407524,2.5364,2942.1,2942.0,3.15178]
[1752350408221,3.3517086,2942.1,2942.0,3.15178]
[1752350408420,3.3517086,2942.1,2942.0,2.23468]
[1752350408919,2.5364,2942.1,2942.0,2.23468]
[1752350410220,0.6796,2941.9,2941.8,3.2078]
[1752350410522,2.483,2941.9,2941.8,3.88742]
[1752350411214,3.1626,2941.9,2941.8,3.2078]
[1752350411415,2.483,2941.6,2941.5,3.88748]
[1752350411724,3.56998704,2941.6,2941.5,3.88748]
[1752350411925,4.24965704,2941.6,2941.5,3.88748]
[1752350412123,3.56998704,2941.6,2941.5,3.88748]
[1752350412326,4.24965704,2941.6,2941.5,3.2078]
[1752350413027,4.24965704,2941.6,2941.5,3.88749]
[1752350413526,3.56998704,2941.6,2941.5,3.88749]
[1752350413727,4.24965704,2941.6,2941.5,3.88749]
[1752350416731,4.24965704,2941.6,2941.2,1.69939]
[1752350416732,1.61136,2941.3,2941.2,3.2078]
[1752350416930,4.24974704,2941.3,2941.2,0.67975]
[1752350418127,1.61141,2941.0,2940.9,3.2078]
[1752350418327,1.61141,2941.0,2940.9,3.88763]
[1752350418328,3.56998704,2941.0,2940.9,3.88763]
[1752350418930,4.24979704,2941.0,2940.9,3.88763]
[1752350419636,1.5514,2940.6,2940.5,5.50042]
[1752350419934,2.483,2940.6,2940.5,5.50042]
[1752350420631,4.24988704,2940.6,2940.5,3.2078]
[1752350421033,4.24988704,2940.6,2940.5,3.88772]
[1752350421633,4.24988704,2940.6,2939.9,4.191]
[1752350421634,0.9388,2940.2,2939.9,4.191]
[1752350421827,3.56998704,2940.2,2940.1,1.3095]
[1752350423632,0.9388,2940.2,2940.1,4.30048704]
[1752350423832,1.8704,2940.2,2940.1,4.30048704]
[1752350424036,1.8704,2940.2,2940.1,3.2135]
[1752350424533,2.483,2940.2,2940.1,3.2135]
[1752350425038,2.483,2940.5,2940.4,2.5335]
[1752350425234,2.483,2940.5,2940.4,4.51724]
[1752350425835,3.16292,2940.5,2940.4,3.2078]
[1752350426235,1.5442,2940.3,2940.2,0.67997]
[1752350426434,2.483,2940.3,2940.2,1.30947]
[1752350427841,2.483,2940.3,2940.2,3.21347]
[1752350428432,0.9388,2940.3,2940.2,3.21347]
[1752350428633,0.9388,2940.6,2940.5,0.67992]
[1752350428940,1.8704,2940.6,2940.5,6.42122]
[1752350431038,1.8704,2940.7,2940.6,2.5839]
[1752350431238,2.483,2940.7,2940.6,3.2134]
[1752350437042,2.483,2940.7,2940.6,6.4212]
[1752350438346,3.2078,2941.5,2940.6,5.7413]
[1752350438649,3.64268704,2941.5,2941.4,3.8393]
[1752350438846,1.5995,2940.9,2940.8,3.8393]
[1752350439144,3.64268704,2940.9,2940.8,4.51915]
[1752350440339,3.2078,2941.5,2940.8,4.51915]
[1752350440538,0.9742,2941.0,2940.9,4.51913]
[1752350440748,1.5995,2941.0,2940.9,5.45703]
[1752350441146,1.5995,2941.0,2940.9,6.40823]
[1752350441550,1.71228704,2941.5,2941.4,0.67971]
[1752350441743,2.7077042,2941.5,2941.4,0.67971]
[1752350441950,0.6253,2942.1,2941.6,1.69917]
[1752350442249,0.6253,2942.1,2942.0,0.67957]
[1752350442654,2.5557,2942.1,2942.0,0.67957]
[1752350444951,3.23525,2942.1,2942.0,0.67957]
[1752350445146,3.2078,2942.3,2942.2,0.67953]
[1752350445353,1.5815,2942.4,2942.3,1.311]
[1752350445553,1.5815,2942.4,2942.3,3.2001]
[1752350445749,2.5557,2942.4,2942.3,3.2001]
[1752350448353,2.5557,2943.1,2943.0,2.24874]
[1752350448655,3.64268704,2943.1,2943.0,2.24874]
[1752350449459,1.08698704,2943.4,2943.3,0.67927]
[1752350449652,2.66848704,2943.4,2943.3,1.31077]
[1752350449854,1.5815,2943.4,2943.3,3.19987]
[1752350450054,2.5557,2943.4,2943.3,3.19987]
[1752350450248,1.9304,2943.3,2943.1,4.159]
[1752350450455,3.64268704,2943.2,2943.1,3.88712]
[1752350450958,4.32198704,2943.2,2943.1,3.88712]
[1752350451159,3.64268704,2943.2,2943.1,3.88712]
[1752350451460,2.5557,2943.2,2943.1,4.51862]
[1752350451658,3.64268704,2943.2,2943.1,4.51862]
[1752350451856,4.32198704,2943.2,2943.1,0.6315]
[1752350452055,1.30464,2943.0,2942.9,2.24875]
[1752350452255,3.23504,2943.0,2942.9,2.24875]
[1752350452460,4.32202704,2943.0,2942.9,2.24875]
[1752350453160,3.64268704,2943.0,2942.9,2.24875]
[1752350453662,2.5557,2943.4,2943.3,0.6315]
[1752350453863,2.5557,2943.4,2943.3,6.40767]
[1752350454866,0.9742,2943.4,2943.3,6.40767]
[1752350455358,2.5557,2943.4,2943.3,6.40767]
[1752350458160,2.5557,2943.4,2943.3,3.2078]
[1752350458355,0.6253,2943.2,2943.1,0.67932]
[1752350458662,2.5557,2943.2,2943.1,1.31082]
[1752350458865,2.5557,2943.2,2943.1,2.24872]
[1752350460166,2.5557,2943.2,2943.1,3.19992]
[1752350460366,2.5557,2943.4,2943.3,2.24867]
[1752350460564,1.5995,2943.6,2943.5,0.67923]
[1752350460762,2.5557,2943.6,2943.5,3.19983]
[1752350461071,11.04900001,2943.6,2943.5,3.19983]
[1752350462563,11.04900001,2943.6,2943.5,0.67923]
[1752350462766,11.04900001,2943.6,2943.3,5.0969]
[1752350462767,2.5557,2943.4,2943.3,3.2078]
[1752350463065,2.5557,2943.4,2943.3,3.88707]
[1752350463066,3.64268704,2943.4,2943.3,3.88707]
[1752350463968,4.32193704,2943.4,2943.3,0.67927]
[1752350465269,12.81523705,2943.4,2943.3,0.67927]
[1752350466769,12.13598705,2943.4,2943.3,0.67927]
[1752350467071,12.81523705,2943.4,2943.3,0.67927]
[1752350467569,12.13598705,2943.4,2943.3,0.67927]
[1752350468970,12.81523705,2943.4,2943.3,0.67927]
[1752350469873,1.33961,2943.3,2943.2,0.67929]
[1752350470068,2.552,2943.3,2943.2,0.67929]
[1752350470274,11.04530001,2943.3,2943.2,0.67929]
[1752350470573,11.72457001,2943.3,2943.2,0.67929]
[1752350470969,0.67934,2943.1,2943.0,0.67931]
[1752350471176,3.37112704,2943.1,2943.0,0.67931]
[1752350471372,4.31832704,2943.1,2943.0,0.67931]
[1752350471570,3.23145,2942.6,2942.5,0.6652]
[1752350471769,3.23148,2942.5,2942.4,0.67948]
[1752350471970,4.31846704,2942.5,2942.4,0.67948]
[1752350472170,3.63898704,2942.5,2942.4,1.34468]
[1752350472369,3.63898704,2942.5,2942.4,2.31088]
[1752350473173,4.31844704,2942.5,2942.4,2.31088]
[1752350473377,4.31844704,2942.5,2942.4,1.34468]
[1752350474874,5.30991982,2942.5,2942.4,0.67948]
[1752350475375,0.6603,2942.4,2942.0,0.944]
[1752350475582,3.63898704,2942.1,2942.0,3.25497]
[1752350476474,2.552,2942.1,2942.0,3.25497]
[1752350480178,11.04530001,2942.1,2942.0,3.25497]
[1752350481174,8.49330001,2942.1,2942.0,9.34195704]
[1752350482381,3.66100001,2942.1,2942.0,9.34195704]
[1752350484182,0.9472,2942.9,2942.8,1.62339]
[1752350484486,0.9472,2942.9,2942.8,2.71037704]
[1752350487388,9.44050001,2942.9,2942.8,2.71037704]
[1752350487583,11.04530001,2942.9,2942.8,1.62339]
[1752350488888,8.49330001,2942.9,2942.8,2.71037704]
[1752350489084,9.44050001,2942.9,2942.8,2.71037704]
[1752350489589,10.10080001,2942.9,2942.8,2.71037704]
[1752350489890,11.04530001,2942.9,2942.8,2.71037704]
[1752350493589,11.04530001,2942.9,2942.8,0.67939]
[1752350494892,12.13228705,2942.9,2942.8,0.67939]
[1752350495085,15.34008705,2942.9,2942.8,0.67939]
[1752350495485,12.13228705,2942.9,2942.8,0.67939]
[1752350498492,12.13228705,2942.9,2942.4,1.69865]
[1752350498695,0.9648,2942.8,2942.4,2.65315]
[1752350498894,1.6023,2942.5,2942.4,1.63398]
[1752350499094,2.5506,2942.5,2942.4,1.63398]
[1752350500295,11.04390001,2942.5,2942.4,1.63398]
[1752350502399,8.49330001,2942.5,2942.4,1.63398]
[1752350507200,7.17207001,2942.5,2942.4,1.63398]
[1752350509305,8.12037001,2942.5,2942.4,1.63398]
[1752350511504,9.72267001,2942.5,2942.4,1.63398]
[1752350511703,9.72267001,2942.5,2942.4,0.67948]
[1752350521717,10.80965705,2942.5,2942.4,0.67948]
[1752350522916,8.89655705,2942.5,2942.0,1.69894]
[1752350523118,0.6375,2942.1,2942.0,1.63407]
[1752350523313,2.5506,2942.1,2942.0,1.63407]
[1752350524018,2.5506,2942.1,2942.0,1.63507]
[1752350525225,9.72267001,2942.1,2942.0,1.63507]
[1752350526122,8.75787001,2942.1,2942.0,1.63507]
[1752350527925,9.70697001,2942.1,2942.0,1.63507]
[1752350528127,9.70697001,2942.1,2942.0,1.63407]
[1752350528524,1.6123,2941.7,2941.6,4.23156]
[1752350528719,2.5601,2941.7,2941.6,5.99821704]
[1752350529121,2.5601,2941.7,2941.6,4.91123]